Cogmind - Beta 14 @@@ ROGUE MODE // 2025.04.22 @ 17:38:42 Player: the Result: Core destroyed Performance ------------- Evolutions (0) 0 Regions Visited (3) 600 Robots Destroyed (38) 190 Value Destroyed (1047) 1047 Prototype IDs (17) 340 Alien Tech Used (0) 0 Bonus (-119) -119 TOTAL SCORE: 2058 Bonus ------- Follower Combat Kills 36 Friendly Fire -155 Cogmind --------- Core Integrity 0/250 Matter 300/300 Energy 310/310 System Corruption 2% Temperature Cool (0) Movement Treading (160) Location -8/Recycling Parts ------- > --- POWER (1+1) ------ Ion Engine Light Nuclear Core (+) > --- PROPULSION (2) --- Improved Treads Improved Treads > --- UTILITY (2) ------ Disposable Heat Sink Advanced Targeting Computer > --- WEAPON (2) ------- Powered Cannon > --- INVENTORY (5) ---- Light Armor Plating Heavy Assault Rifle Shock Bomb Launcher Peak State ------------ > --- POWER ------------ Ion Engine Light Nuclear Core > --- PROPULSION ------- Improved Treads Improved Treads > --- UTILITY ---------- Disposable Heat Sink Advanced Targeting Computer > --- WEAPON ----------- Powered Cannon > --- INVENTORY -------- Light Armor Plating Heavy Assault Rifle Shock Bomb Launcher [Rating: 27] Favorites ----------- Power Ion Engine Engine Ion Engine Power Core Light Nuclear Core Propulsion Light Treads Treads Light Treads Leg Aluminum Leg Wheel Wheel Utility Large Storage Unit Device Seismic Detector Storage Large Storage Unit Processor Advanced Targeting Computer Protection Propulsion Shielding Weapon Light Cannon Energy Gun Medium Laser Energy Cannon Powered Cannon Ballistic Cannon Light Cannon Special Weapon Mining Laser Build | -11 -10 -10 -8 ------- Run | Yrd Mat Sub Rec Slots Evolved . | . . . . Power . | . . . . Propulsion . | . . . . Utility . | . . . . Weapon . | . . . . Parts Attached 76 | 7 22 28 19 Power 8 | 1 2 3 2 Engine 7 | 1 2 3 1 Core 1 | . . . 1 Reactor . | . . . . Propulsion 18 | 2 2 7 7 Treads 7 | . 2 2 3 Leg 9 | . . 5 4 Wheel 2 | 2 . . . Hover . | . . . . Flight . | . . . . Utility 27 | 2 10 8 7 Device 18 | 1 6 7 4 Storage 3 | 1 2 . . Processor 2 | . 1 . 1 Hackware . | . . . . Protection 4 | . 1 1 2 Artifact . | . . . . Weapon 23 | 2 8 10 3 Energy Gun 4 | 2 . 1 1 Energy Cannon 2 | . . 1 1 Ballistic Gun . | . . . . Ballistic Cannon 9 | . 5 4 . Launcher . | . . . . Special Weapon 8 | . 3 4 1 Impact Weapon . | . . . . Slashing Weapon . | . . . . Piercing Weapon . | . . . . Special Melee Weapon . | . . . . Unidentified Prototypes . | . . . . Parts Lost 12 | . 1 5 6 Power 2 | . . 1 1 Propulsion 4 | . . 2 2 Utility 1 | . . 1 . Weapon 5 | . 1 1 3 Highest Loss Streak 6 | . 1 4 6 To Critical Strikes . | . . . . Average Slot Usage (%) 95 | . 100 98 87 Engine 13 | . 14 13 12 Core 1 | . . . 6 Treads 20 | . 19 26 16 Leg 3 | . . 1 8 Wheel 3 | . 8 . . Device 12 | . 13 12 12 Storage 12 | . 14 14 10 Energy Gun 4 | . 8 1 3 Energy Cannon 4 | . . 5 9 Ballistic Cannon 12 | . 15 16 3 Special Weapon 2 | . 4 4 . Peak Build Rating 27 | 7 8 18 27 Average Rating 13 | 5 7 13 21 On Entrance 7 | . 7 8 15 Naked Turns . | . . . . Heaviest Build 40 | 15 34 36 40 Greatest Support 46 | 20 40 40 46 Greatest Overweight (x) 3 | . 1 1 3 Average Overweight (x) . | . . . . Largest Inventory Capacity 15 | 8 15 15 15 Average Capacity 13 | 6 13 15 13 Most Carried 15 | 3 14 15 15 Average Carried 10 | 2 9 14 8 Final Capacity 15 | 8 15 15 5 Final Carried 15 | 3 14 15 3 Class Distribution -------------------- 77% | Mutant 19% | Commander-Mutant Dominant Class ---------------- Mutant | -10/Materials Mutant | -10/Subcaves Commander-Mutant | -8/Recycling Resources | -11 -10 -10 -8 ----------- Run | Yrd Mat Sub Rec Matter Collected 1440 | 157 450 490 343 Remotely . | . . . . Salvage Created 1178 | 27 566 133 452 Parts 61 | 1 39 5 16 Haulers Intercepted 2 | . 2 . . Recyclers Shooed 1 | . 1 . . Parts Field Recycled . | . . . . Retrieved Matter . | . . . . Parts Self-Destructed 8 | . . 8 . Prevented . | . . . . Kills | -11 -10 -10 -8 ------- Run | Yrd Mat Sub Rec Combat Hostiles Destroyed 24 | . 11 6 7 Guns 5 | . 3 . 2 Cannons 18 | . 8 6 4 Classes Destroyed 13 | 1 6 2 4 Builder 2 | . 2 . . Tunneler 1 | 1 . . . Hauler 2 | . 2 . . Recycler 1 | . . . 1 Operator 2 | . 2 . . Turret 2 | . . 2 . Watcher 3 | . 3 . . Swarmer 4 | . 2 2 . Grunt 11 | . 9 . 2 Brawler 1 | . . . 1 Sentry 3 | . . . 3 Programmer 2 | . . . 2 Subdweller 4 | . . 4 . Best Kill Streak 7 | 1 7 2 4 Combat Bots Only 4 | . 2 2 4 Max Kills in Single Turn 1 | 1 1 1 1 Gunslinging . | . . . . Exploded . | . . . . Melee . | . . . . Uniques/NPCs Destroyed . | . . . . Combat | -11 -10 -10 -8 -------- Run | Yrd Mat Sub Rec Hostile Shots Fired 177 | . 59 71 47 Missed 50 | . 14 26 10 Damage Taken 1782 | . 493 721 568 Core 257 | . 31 111 115 Absorbed by Shields 8 | . . . 8 Redirected to Shielding 8 | . . . 8 Core Remaining (%) 100 | 100 . . . Volleys Fired 161 | 4 68 64 25 Largest 2 | 2 2 2 2 Hottest 139 | 100 100 139 120 Shots Fired 257 | 8 123 93 33 Gun 79 | 8 58 5 8 Cannon 147 | . 52 72 23 Launcher . | . . . . Special 31 | . 13 16 2 Kinetic 114 | . 52 51 11 Thermal 143 | 8 71 42 22 Explosive . | . . . . Electromagnetic . | . . . . Robot Hit Streak 9 | 3 9 8 8 Robot Miss Streak 7 | 4 7 3 3 Penetration Max . | . . . . Secondary Targets 1 | . 1 . . Max Gunslinging Chain 1 | . 1 . . Autonomous 8 | . . . 8 Shots Hit Robots 119 | 3 52 41 23 Core Hits 53 | 1 26 13 13 Critical Kills 1 | . . . 1 Critical Parts Destroyed . | . . . . Critical Strikes 8 | . 5 2 1 Burn 5 | . 5 . . Meltdown 1 | . . . 1 Blast 2 | . . 2 . Melee Attacks . | . . . . Impact . | . . . . Slashing . | . . . . Piercing . | . . . . Sneak Attacks . | . . . . Combat Hostiles . | . . . . Follow-up Attacks . | . . . . Damage Inflicted 2463 | 38 821 732 872 Guns 719 | 38 447 101 133 Cannons 1702 | . 374 611 717 Explosions . | . . . . Melee . | . . . . Ramming . | . . . . Kinetic 1062 | . 374 556 132 Thermal 1401 | 38 447 176 740 Explosive . | . . . . Electromagnetic . | . . . . Impact . | . . . . Slashing . | . . . . Piercing . | . . . . Highest Corruption 2 | . . . 2 Average Corruption 1 | . . . 1 Corruption Purged . | . . . . Corruption Blocked . | . . . . Effects 16 | . . . 16 Message Errors 5 | . . . 5 Matter Fused 7 | . . . 7 Heat Flow Errors 2 | . . . 2 Energy Discharges 1 | . . . 1 Data Loss (minor) 1 | . . . 1 Overload Shots 4 | . . . 4 Effects 1 | . . . 1 Heat Surge 1 | . . . 1 Overflow Damage 112 | . 18 . 94 Projectiles 112 | . 18 . 94 Explosions . | . . . . Melee . | . . . . Knockbacks 10 | . 4 5 1 Impact . | . . . . Kinetic 10 | . 4 5 1 Secondary . | . . . . Self-Inflicted Damage . | . . . . Shots . | . . . . Rammed . | . . . . Targets Rammed . | . . . . Kicked . | . . . . Crushed . | . . . . Highest Temperature 346 | 156 305 48 346 Average Temperature 72 | 81 63 15 121 Received Heat Transfer 700 | . 240 192 268 Effects 4 | . . . 4 Interference 3 | . . . 3 Damage (minor) 1 | . . . 1 Siege Activations . | . . . . Robots Corrupted . | . . . . Combat Hostiles . | . . . . Parts Fried . | . . . . Impact Corruptions . | . . . . Robots Melted 1 | . . . 1 Combat Hostiles 1 | . . . 1 Parts Melted 7 | . 5 . 2 Heat Transferred 2782 | 111 1702 359 610 Parts Sabotaged . | . . . . Parts Stolen . | . . . . Parts Stripped . | . . . . Power Chain Reactions . | . . . . Alert | -11 -10 -10 -8 ------- Run | Yrd Mat Sub Rec Peak Influence 200 | 5 194 . 200 Initial 103 | . 3 . 103 Average 44 | 1 54 . 34 Maximum Alert Level 1 | . . . 1 Low Security (%) 99 | 100 100 . 99 Level 1 . | . . . . Level 2 . | . . . . Level 3 . | . . . . Level 4 . | . . . . Level 5 . | . . . . High Security . | . . . . Max Security . | . . . . Squads Dispatched 2 | . 2 . . Investigation 1 | . 1 . . Extermination . | . . . . Reinforcement 1 | . 1 . . Assault . | . . . . Garrison . | . . . . Intercept . | . . . . Searches Triggered . | . . . . Construction Impeded . | . . . . Haulers Reinforced . | . . . . Active Scanning Responses . | . . . . Cargo Convoy Interrupts . | . . . . Stealth | -11 -10 -10 -8 --------- Run | Yrd Mat Sub Rec Distress Signals 1 | . 1 . . Communications Jammed . | . . . . Distress Signals . | . . . . Times Spotted 39 | . 18 13 8 Peak Tracking Total 6 | . 3 6 6 Tactical Retreats 3 | . . 3 . Traps | -11 -10 -10 -8 ------- Run | Yrd Mat Sub Rec Traps Triggered 2 | . 1 1 . Indirectly . | . . . . Trap Hack Attempts . | . . . . Triggered . | . . . . Disarmed 2 | . 2 . . Reprogrammed . | . . . . Reused . | . . . . Traps Extracted . | . . . . Installed . | . . . . Triggered . | . . . . Machines | -11 -10 -10 -8 ---------- Run | Yrd Mat Sub Rec Machines Disabled 3 | . 2 1 . Max in Single Turn 1 | . 1 1 . Machines Repaired . | . . . . Machines Dismantled . | . . . . Machines Sabotaged . | . . . . Overloaded Fab Kills . | . . . . Hacking | -11 -10 -10 -8 --------- Run | Yrd Mat Sub Rec Machines Accessed 19 | . 9 3 7 Terminals 13 | . 7 . 6 Fabricators . | . . . . Repair Stations . | . . . . Recycling Units 3 | . 2 . 1 Scanalyzers . | . . . . Garrison Access . | . . . . Total Hacks 60 | . 27 12 21 Successful 34 | . 13 12 9 Failed 26 | . 14 . 12 Catastrophic 2 | . 1 . 1 Database Lockouts . | . . . . Manual 26 | . 17 . 9 Terminals 45 | . 25 . 20 Fabricators . | . . . . Repair Stations . | . . . . Recycling Units 3 | . 2 . 1 Scanalyzers . | . . . . Garrison Access . | . . . . Terminal Hacks 23 | . 7 12 4 Record 9 | . . 9 . Part Schematic 1 | . . . 1 Robot Analysis 1 | . . . 1 Prototype ID Bank 3 | . 1 . 2 Open Door 1 | . . 1 . Locate Traps 1 | . 1 . . Disarm Traps 1 | . 1 . . Hauler Manifests 1 | . 1 . . Registered Components 1 | . 1 . . Registered Prototypes 1 | . 1 . . Zone Layout 1 | . 1 . . Derelict Proto ID Bank 1 | . . 1 . Release Object 1 | . . 1 . Fabricator Hacks . | . . . . Repair Station Hacks . | . . . . Recycling Unit Hacks 2 | . 2 . . Retrieve Components 2 | . 2 . . Scanalyzer . | . . . . Garrison Access Hacks . | . . . . Unauthorized Hacks 9 | . 4 . 5 Terminals 8 | . 4 . 4 Botnet 7 | . 3 . 4 Operators 1 | . 1 . . Fabricators . | . . . . Repair Stations . | . . . . Recycling Units 1 | . . . 1 Mask 1 | . . . 1 Scanalyzers . | . . . . Garrison Access . | . . . . Data Cores Recovered . | . . . . Used . | . . . . Hacking Detections 14 | . 8 . 6 Full Trace Events 2 | . . . 2 Feedback Events . | . . . . Feedback Blocked . | . . . . Robot Schematics Acquired . | . . . . Robots Built . | . . . . Authchips . | . . . . Time . | . . . . Total Robot Build Rating . | . . . . Part Schematics Acquired 1 | . . . 1 Parts Built . | . . . . Authchips . | . . . . Time . | . . . . Total Part Build Rating . | . . . . Parts Repaired . | . . . . Time . | . . . . Parts Recycled . | . . . . Recycled Matter . | . . . . Retrieved Matter . | . . . . Retrieved Components 15 | . 15 . . Parts Scanalyzed . | . . . . Part Schematics Acquired . | . . . . Parts Damaged . | . . . . Bothacking | -11 -10 -10 -8 ------------ Run | Yrd Mat Sub Rec Used RIF Installer . | . . . . Robots Hacked . | . . . . Non-combat . | . . . . Combat . | . . . . Robot Hacks Applied . | . . . . Relay Couplers Released . | . . . . Fabnet Peak Effective % . | . . . . Robots Rewired 11 | . . . 11 Allies Hacked . | . . . . Hacks Repelled . | . . . . Allies | -11 -10 -10 -8 -------- Run | Yrd Mat Sub Rec Total Allies 11 | . . . 11 Largest Group 11 | . . . 11 Highest-Rated Group 140 | . . . 140 Highest-Rated Ally 27 | . . . 27 Total Orders 9 | . . . 9 STAY 1 | . . . 1 ROAM 1 | . . . 1 FOLLOW 2 | . . . 2 GUARD 3 | . . . 3 AID 2 | . . . 2 Ally Attacks 7 | . . . 7 Total Damage 75 | . . . 75 Kills 1 | . . . 1 Allies Corrupted . | . . . . Allies Melted . | . . . . Intel | -11 -10 -10 -8 ------- Run | Yrd Mat Sub Rec Robot Analysis Total 1 | . . . 1 Derelict Logs Recovered 2 | . . 2 . Drone Launches . | . . . . Drone Recoveries . | . . . . Exploration | -11 -10 -10 -8 ------------- Run | Yrd Mat Sub Rec Turns Passed 4825 | 58 1743 1585 1439 Spaces Moved 2628 | 38 1115 831 644 Core 3 | 3 . . . Treads 1923 | . 661 775 487 Legs 213 | . . 56 157 Wheels 489 | 35 454 . . Hover . | . . . . Flight . | . . . . Fastest Speed 50 | 50 80 130 160 Average Speed 146 | 77 127 158 168 Slowest Speed 330 | 80 160 190 330 Overloaded Moves . | . . . . Propulsion Burnouts . | . . . . Robots Hopped . | . . . . Cave-ins Triggered . | . . . . Exploration Rate (%) 57 | 3 100 44 84 Regions Visited 3 Branch Regions 2 Pre-discovered Areas 1 | . . 1 . Known Exits Taken . | . . . . Unknown Exits Taken 3 | 1 1 1 . Scrap Searched 1 | . . 1 . Spaces Dug 17 | . 12 1 4 Terrain Destroyed 33 | . 26 1 6 Melee . | . . . . Projectile 19 | . 12 1 6 AOE 14 | . 14 . . Terrain Rammed . | . . . . Walls Destroyed . | . . . . Machines Disabled . | . . . . Actions | -11 -10 -10 -8 --------- Run | Yrd Mat Sub Rec Total 3279 | 54 1283 967 975 Wait 177 | 3 46 21 107 Move 2625 | 37 1114 830 644 Hop . | . . . . Pick Up 39 | 3 21 12 3 Fast Attach 8 | 7 . 1 . Attach 17 | . 3 5 9 Detach 1 | . . . 1 Swap 51 | . 19 22 10 Drop 32 | . 12 11 9 Fire 161 | 4 68 64 25 Melee . | . . . . Ram . | . . . . Kick . | . . . . Crush . | . . . . Escape Stasis . | . . . . Rewire 167 | . . . 167 Trap . | . . . . Miscellaneous 1 | . . 1 . Route ------- -11/Scrapyard -10/Materials (discovered 5 exits: [*Mat x3] / [*Min] / *Sub) -10/Subcaves (discovered 2 exits: [*Mat] / *Rec) -8/Recycling History --------- Turn | Location | Event 12 | -11/Scrapyard | Discovered new exit (range 16) 59 | -11/Scrapyard | Entered Materials 119 | -10/Materials | Discovered new exit (range 4) 300 | -10/Materials | Build established: Mutant 493 | -10/Materials | Discovered new exit (range 4) 608 | -10/Materials | Discovered new exit (range 14) 787 | -10/Materials | Discovered new exit (range 11) 1791 | -10/Materials | Discovered new exit (range 8) 1802 | -10/Materials | Entered Subcaves 2011 | -10/Subcaves | Lost 4 parts (1p2n1u) 2105 | -10/Subcaves | Shifting Twisted Machinery released Sub. Beam Cannon 2242 | -10/Subcaves | Shifting Twisted Machinery released Flamer 2313 | -10/Subcaves | Learned location of Zion (-6) 2314 | -10/Subcaves | Learned Materials stockpile data 2352 | -10/Subcaves | A swath of the cavern ceiling suddenly collapsed 2464 | -10/Subcaves | Released subatomizers from SUBCON Basin 2503 | -10/Subcaves | Shifting Twisted Machinery released Battle Cannon 2509 | -10/Subcaves | Shifting Twisted Machinery released Mak. Hacking Suite 2601 | -10/Subcaves | Shifting Twisted Machinery released Sub. Monowheel 2685 | -10/Subcaves | Shifting Twisted Machinery released Sub. Laser 2752 | -10/Subcaves | Discovered new exit (range 9) 2922 | -10/Subcaves | Core integrity fell below 50% 2937 | -10/Subcaves | Visited 4L-MR0's lab 2965 | -10/Subcaves | Found Powered Cannon 3194 | -10/Subcaves | Disturbed a concealed Subdweller 3280 | -10/Subcaves | Discovered new exit (range 18) 3387 | -10/Subcaves | Entered Recycling 3737 | -8/Recycling | Core integrity fell below 20% 3746 | -8/Recycling | Attached Powered Cannon, gained temporary slot: Power 3781 | -8/Recycling | Lost 6 parts (1p2n3w) 4185 | -8/Recycling | Build established: Commander-Mutant 4660 | -8/Recycling | Scanned before Scraplab entrance 4761 | -8/Recycling | Angered Scraplab inhabitants 4826 | -8/Recycling | Core destroyed Last Messages --------------- 04644_ System corrupted: Matter fused (-5). 04660_ LOCAL NARROWCAST: You may approach the wall. 04663_ The wall retracts into the floor. W1-019(j): Strange, I checked the recommendation list not long ago and didn't see anyone like you on it. Who recommended you? Anyway, the system is always right, go on in. Not my problem as long as you don't touch anything in here. Just really don't mess with anything in there. Then it'll be my problem, and yours. 04724_ MCT T/I>3JWNFG